Cogmind - Beta 15 @@@ ROGUE MODE // 2025.09.14 @ 18:34:50 Player: Beter Result: Destroyed by G-50 Soldier with Heavy Laser Performance ------------- Evolutions (2) 1000 Regions Visited (3) 600 Robots Destroyed (34) 170 Value Destroyed (990) 990 Prototype IDs (1) 20 Alien Tech Used (0) 0 Bonus (0) 0 TOTAL SCORE: 2780 Bonus ------- None Cogmind --------- Core Integrity 0/550 Matter 183/300 Energy 17/100 System Corruption 2% Temperature Cool (27) Movement Core (150) Ox2 Location -8/Materials Parts ------- > --- POWER (2) -------- (None) > --- PROPULSION (2) --- (None) > --- UTILITY (4) ------ Visual Processing Unit Improved Sensor Array Improved Sensor Array Hacking Suite > --- WEAPON (3) ------- Minigun Minigun > --- INVENTORY (5) ---- Aluminum Leg Compact Wheel Seismic Detector Datajack Peak State ------------ > --- POWER ------------ Improved Ion Engine Light Nuclear Core > --- PROPULSION ------- Armored Wheel Armored Wheel > --- UTILITY ---------- Visual Processing Unit Sensor Array Terrain Scanner Hacking Suite > --- WEAPON ----------- Improved EM Shotgun Improved EM Shotgun EM Pulse Cannon > --- INVENTORY -------- Aluminum Leg Compact Wheel Datajack [Rating: 25] Favorites ----------- Power Light Ion Engine Engine Light Ion Engine Power Core Light Nuclear Core Propulsion Aluminum Leg Leg Aluminum Leg Wheel Armored Wheel Utility Sensor Array Device Sensor Array Storage Huge Storage Unit Processor Visual Processing Unit Hackware Hacking Suite Weapon Assault Rifle Energy Gun Improved EM Shotgun Energy Cannon Beam Cannon Ballistic Gun Assault Rifle Launcher Grenade Launcher Impact Weapon Heavy Hammer Special Melee Weapon Datajack Build | -11 -10 -9 -8 ------- Run | Yrd Mat Mat Mat Slots Evolved 4 | . . 2 2 Power 1 | . . . 1 Propulsion . | . . . . Utility 2 | . . 1 1 Weapon 1 | . . 1 . Parts Attached 35 | 6 3 16 10 Power 6 | 1 . 3 2 Engine 5 | 1 . 3 1 Core 1 | . . . 1 Reactor . | . . . . Propulsion 7 | 2 . 5 . Treads . | . . . . Leg 3 | . . 3 . Wheel 4 | 2 . 2 . Hover . | . . . . Flight . | . . . . Utility 9 | 1 2 2 4 Device 4 | . 1 . 3 Storage 2 | 1 1 . . Processor 1 | . . 1 . Hackware 2 | . . 1 1 Protection . | . . . . Artifact . | . . . . Weapon 13 | 2 1 6 4 Energy Gun 3 | . . 2 1 Energy Cannon 2 | . . 1 1 Ballistic Gun 5 | 2 . 1 2 Ballistic Cannon . | . . . . Launcher 1 | . 1 . . Special Weapon . | . . . . Impact Weapon 1 | . . 1 . Slashing Weapon . | . . . . Piercing Weapon . | . . . . Special Melee Weapon 1 | . . 1 . Unidentified Prototypes 1 | . . 1 . Parts Lost 12 | . . 1 11 Power 3 | . . 1 2 Propulsion 2 | . . . 2 Utility 2 | . . . 2 Weapon 5 | . . . 5 Highest Loss Streak 5 | . . 1 5 To Critical Strikes . | . . . . Average Backups 4 | 3 6 4 3 Power . | . 1 1 . Propulsion 2 | 2 3 2 2 Utility . | . . . . Weapon . | . 1 1 . Tool/Special . | . . . . Unused Backups 5 | . 1 3 1 Power . | . . . . Propulsion 3 | . 1 2 . Utility 1 | . . . 1 Weapon 1 | . . 1 . Tool/Special . | . . . . Average Slot Usage (%) 85 | . 97 90 74 Engine 9 | . 14 10 6 Leg 10 | . . 19 . Wheel 9 | . 28 2 13 Device 11 | . 10 11 12 Storage 2 | . 14 . . Processor 6 | . . 6 9 Hackware 6 | . . 6 9 Energy Gun 5 | . . 3 10 Energy Cannon 2 | . . . 6 Ballistic Gun 8 | . 22 9 1 Launcher 7 | . 5 10 3 Impact Weapon 1 | . . 3 . Special Melee Weapon 2 | . . 5 . Peak Build Rating 25 | 6 7 18 25 Average Rating 12 | 4 6 11 17 On Entrance 7 | . 6 7 16 Naked Turns . | . . . . Heaviest Build 92 | 12 92 89 26 Greatest Support 32 | 32 32 32 24 Greatest Overweight (x) 2 | . 2 2 2 Average Overweight (x) . | . 1 . . Largest Inventory Capacity 25 | 8 25 25 5 Average Capacity 7 | 6 21 5 5 Most Carried 6 | 6 6 6 5 Average Carried 4 | 3 5 4 3 Final Capacity 25 | 8 25 5 5 Final Carried 6 | 6 6 5 4 Class Distribution -------------------- 53% | Mutant 46% | Skirmisher Dominant Class ---------------- Mutant | -10/Materials Skirmisher | -9/Materials Skirmisher | -8/Materials Resources | -11 -10 -9 -8 ----------- Run | Yrd Mat Mat Mat Matter Collected 779 | 198 96 323 162 Remotely . | . . . . Salvage Created 975 | . 97 450 428 Parts 66 | . 7 39 20 Haulers Intercepted 1 | . . 1 . Recyclers Shooed 2 | . 1 1 . Parts Field Recycled . | . . . . Retrieved Matter . | . . . . Parts Self-Destructed . | . . . . Prevented . | . . . . Kills | -11 -10 -9 -8 ------- Run | Yrd Mat Mat Mat Combat Hostiles Destroyed 24 | . . 17 7 Guns 4 | . . 3 1 Cannons 3 | . . 2 1 AOE 16 | . . 12 4 Classes Destroyed 9 | . 2 6 1 Builder 2 | . . 2 . Hauler 1 | . . 1 . Recycler 2 | . 1 1 . Operator 2 | . . 2 . Watcher 3 | . 1 . 2 Swarmer 8 | . . 8 . Grunt 13 | . . 8 5 Sentry 2 | . . 1 1 Hunter 1 | . . . 1 Best Kill Streak 5 | . 1 5 5 Combat Bots Only 5 | . . 5 4 Max Kills in Single Turn 3 | . 1 3 1 Gunslinging . | . . . . Exploded 3 | . . 3 1 Melee . | . . . . Uniques/NPCs Destroyed . | . . . . Combat | -11 -10 -9 -8 -------- Run | Yrd Mat Mat Mat Hostile Shots Fired 161 | . . 55 106 Missed 45 | . . 17 28 Hits 116 | . . 38 78 Projectile 116 | . . 38 78 Critical Strikes 10 | . . 2 8 Damage Taken 1961 | . 13 626 1322 Core 658 | . 3 87 568 Absorbed by Shields . | . . . . Regen/Repaired (Parts) 102 | . . 45 57 Core Remaining (%) 92 | 100 98 78 . Volleys Fired 76 | . 1 38 37 Largest 3 | . 2 3 3 Hottest 153 | . 50 120 153 Shots Fired 126 | . 2 62 62 Gun 69 | . 1 26 42 Cannon 33 | . . 13 20 Launcher 24 | . 1 23 . Special . | . . . . Kinetic 36 | . 1 17 18 Thermal 24 | . . 13 11 Explosive 24 | . 1 23 . Electromagnetic 42 | . . 9 33 Robot Hit Streak 6 | . . 6 6 Robot Miss Streak 4 | . . 3 4 Penetration Max . | . . . . Secondary Targets . | . . . . Shots Hit Robots 70 | . . 33 37 Core Hits 63 | . 3 40 20 Critical Kills . | . . . . Critical Parts Destroyed . | . . . . Critical Strikes . | . . . . Melee Attacks 11 | . . 11 . Impact 3 | . . 3 . Slashing . | . . . . Piercing . | . . . . Sneak Attacks 9 | . . 9 . Combat Hostiles . | . . . . Follow-up Attacks . | . . . . Damage Inflicted 2811 | . 70 1521 1220 Guns 653 | . . 210 443 Cannons 401 | . . 105 296 Explosions 1552 | . 40 1031 481 Melee 174 | . . 174 . Ramming 31 | . 30 1 . Kinetic 281 | . . 127 154 Thermal 701 | . . 135 566 Explosive 1041 | . 40 1001 . Electromagnetic 583 | . . 83 500 Impact 174 | . . 174 . Slashing . | . . . . Piercing . | . . . . Highest Corruption 2 | . . . 2 Average Corruption 2 | . . . 2 Corruption Purged . | . . . . Corruption Blocked . | . . . . Overload Shots . | . . . . Overflow Damage 181 | . . 139 42 Projectiles . | . . . . Explosions 89 | . . 47 42 Melee 92 | . . 92 . Knockbacks . | . . . . Impact . | . . . . Kinetic . | . . . . Secondary . | . . . . Self-Inflicted Damage 290 | . 13 208 69 Shots 10 | . . 9 1 Rammed 4 | . 4 . . Targets Rammed 5 | . 4 1 . Kicked 1 | . . 1 . Crushed . | . . . . Highest Temperature 435 | . . 130 435 Average Temperature 145 | . . 45 196 Received Heat Transfer 888 | . . 114 774 Effects 7 | . . . 7 Interference 2 | . . . 2 Short Circuit 1 | . . . 1 Damage (minor) 1 | . . . 1 Damage (major) 3 | . . . 3 Siege Activations . | . . . . Martial Activations . | . . . . Shielding Activations . | . . . . Robots Disrupted . | . . . . Combat Hostiles . | . . . . Robots Corrupted 1 | . . . 1 Combat Hostiles 1 | . . . 1 Parts Fried 3 | . . . 3 Impact Corruptions 2 | . . 2 . Robots Melted . | . . . . Combat Hostiles . | . . . . Parts Melted 2 | . . 2 . Heat Transferred 857 | . . 272 585 Parts Sabotaged . | . . . . Parts Stolen . | . . . . Parts Stripped . | . . . . Power Chain Reactions 5 | . . 1 4 Alert | -11 -10 -9 -8 ------- Run | Yrd Mat Mat Mat Maximum Alert Level 1 | . . 1 1 Low Security (%) 80 | 100 100 89 56 Level 1 19 | . . 10 43 Level 2 . | . . . . Level 3 . | . . . . Level 4 . | . . . . Level 5 . | . . . . High Security . | . . . . Max Security . | . . . . Peak Influence 380 | . 16 380 334 Initial 157 | . . 1 157 Average 105 | . 2 87 189 Influence Increases 1078 | . 21 640 417 Destroy 0b10 Robot/C 480 | . . 340 140 Destroy 0b10 Robot/NC 50 | . 10 30 10 Destroy Leader 98 | . 2 62 34 Disable Machine 180 | . . 90 90 Destroy Structure 165 | . 9 118 38 Lose Combat Pursuer 105 | . . . 105 Influence Decreases 844 | . 15 273 556 Entered New Map 221 | . . 5 216 Time Decay 503 | . 15 258 230 Lost Part 120 | . . 10 110 Squads Dispatched 3 | . . 2 1 Investigation 1 | . . 1 . Extermination . | . . . . Reinforcement 2 | . . 1 1 Assault . | . . . . Garrison . | . . . . Intercept . | . . . . Searches Triggered . | . . . . Construction Impeded . | . . . . Haulers Reinforced . | . . . . Active Scanning Responses . | . . . . Cargo Convoy Interrupts . | . . . . Stealth | -11 -10 -9 -8 --------- Run | Yrd Mat Mat Mat Distress Signals 5 | . . 2 3 Communications Jammed . | . . . . Distress Signals . | . . . . Times Spotted 50 | . 1 23 26 Peak Tracking Total 7 | . 1 6 7 Tactical Retreats 3 | . . . 3 Traps | -11 -10 -9 -8 ------- Run | Yrd Mat Mat Mat Traps Triggered 1 | . . . 1 Indirectly . | . . . . Trap Hack Attempts . | . . . . Triggered . | . . . . Disarmed . | . . . . Reprogrammed . | . . . . Reused . | . . . . Traps Extracted . | . . . . Installed . | . . . . Triggered . | . . . . Machines | -11 -10 -9 -8 ---------- Run | Yrd Mat Mat Mat Machines Disabled 12 | . . 6 6 Max in Single Turn 6 | . . 1 6 Machines Repaired . | . . . . Machines Dismantled . | . . . . Machines Sabotaged . | . . . . Overloaded Fab Kills . | . . . . Hacking | -11 -10 -9 -8 --------- Run | Yrd Mat Mat Mat Machines Accessed 8 | . 2 4 2 Terminals 5 | . 2 2 1 Fabricators . | . . . . Repair Stations 2 | . . 1 1 Recycling Units 1 | . . 1 . Scanalyzers . | . . . . Garrison Access . | . . . . Total Hacks 13 | . 2 7 4 Successful 10 | . 2 5 3 Failed 3 | . . 2 1 Catastrophic . | . . . . Database Lockouts . | . . . . Manual . | . . . . Terminals 6 | . 2 3 1 Fabricators . | . . . . Repair Stations 6 | . . 3 3 Recycling Units 1 | . . 1 . Scanalyzers . | . . . . Garrison Access . | . . . . Terminal Hacks 4 | . 2 1 1 Terminal Index 1 | . 1 . . Hauler Manifests 1 | . . 1 . Zone Layout 2 | . 1 . 1 Fabricator Hacks . | . . . . Repair Station Hacks 5 | . . 3 2 Scan Component 3 | . . 2 1 Repair 2 | . . 1 1 Recycling Unit Hacks 1 | . . 1 . Retrieve Components 1 | . . 1 . Scanalyzer . | . . . . Garrison Access Hacks . | . . . . Unauthorized Hacks . | . . . . Terminals . | . . . . Fabricators . | . . . . Repair Stations . | . . . . Recycling Units . | . . . . Scanalyzers . | . . . . Garrison Access . | . . . . Data Cores Recovered 1 | . . 1 . Used . | . . . . Hacking Detections 3 | . 1 1 1 Full Trace Events 1 | . . 1 . Feedback Events . | . . . . Feedback Blocked . | . . . . Robot Schematics Acquired . | . . . . Robots Built . | . . . . Authchips . | . . . . Time . | . . . . Total Robot Build Rating . | . . . . Part Schematics Acquired . | . . . . Parts Built . | . . . . Authchips . | . . . . Time . | . . . . Total Part Build Rating . | . . . . Parts Repaired 2 | . . 1 1 Time 77 | . . 26 51 Parts Recycled . | . . . . Recycled Matter . | . . . . Retrieved Matter . | . . . . Retrieved Components 3 | . . 3 . Parts Scanalyzed . | . . . . Part Schematics Acquired . | . . . . Parts Damaged . | . . . . Bothacking | -11 -10 -9 -8 ------------ Run | Yrd Mat Mat Mat Used RIF Installer . | . . . . Robots Hacked 3 | . . 3 . Non-combat 3 | . . 3 . Combat . | . . . . Robot Hacks Applied 6 | . . 6 . parse_system 2 | . . 2 . no_distress 3 | . . 3 . check_alert 1 | . . 1 . Relay Couplers Released . | . . . . Fabnet Peak Effective % . | . . . . Robots Rewired . | . . . . Allies Hacked . | . . . . Hacks Repelled . | . . . . Allies | -11 -10 -9 -8 -------- Run | Yrd Mat Mat Mat Total Allies . | . . . . Largest Group . | . . . . Highest-Rated Group . | . . . . Highest-Rated Ally . | . . . . Total Orders . | . . . . Ally Attacks . | . . . . Total Damage . | . . . . Kills . | . . . . Allies Corrupted . | . . . . Allies Melted . | . . . . Intel | -11 -10 -9 -8 ------- Run | Yrd Mat Mat Mat Active Infowar (turns) 1479 | . 146 835 498 Optics 990 | . . 492 498 Sensors 1462 | . 146 835 481 Terrain 95 | . . . 95 Robot Analysis Total . | . . . . Derelict Logs Recovered . | . . . . Drone Launches . | . . . . Drone Recoveries . | . . . . Exploration | -11 -10 -9 -8 ------------- Run | Yrd Mat Mat Mat Turns Passed 1593 | 73 187 835 498 Spaces Moved 969 | 60 140 481 288 Core 93 | 2 . . 91 Treads . | . . . . Legs 424 | . . 424 . Wheels 452 | 58 140 57 197 Hover . | . . . . Flight . | . . . . Fastest Speed 50 | 50 100 90 50 Average Speed 108 | 98 122 117 90 Slowest Speed 150 | 100 130 130 150 Overloaded Moves . | . . . . Propulsion Burnouts . | . . . . Robots Hopped . | . . . . Potential Cave-ins . | . . . . Cave-ins Triggered . | . . . . Exploration Rate (%) 22 | 4 23 31 31 Regions Visited 3 Branch Regions . Pre-discovered Areas . | . . . . Known Exits Taken . | . . . . Unknown Exits Taken 3 | 1 1 1 . Scrap Searched . | . . . . Spaces Dug . | . . . . Terrain Destroyed 203 | . 9 154 40 Melee . | . . . . Projectile . | . . . . AOE 203 | . 9 154 40 Terrain Rammed . | . . . . Walls Destroyed . | . . . . Machines Disabled . | . . . . Actions | -11 -10 -9 -8 --------- Run | Yrd Mat Mat Mat Total 1371 | 71 151 681 468 Wait 249 | . 2 118 129 Move 966 | 59 139 480 288 Hop . | . . . . Pick Up 15 | 6 1 7 1 Fast Attach 16 | 6 1 3 6 Attach 4 | . . 2 2 Detach . | . . . . Swap 19 | . 2 13 4 Drop 10 | . 1 8 1 Fire 76 | . 1 38 37 Melee 11 | . . 11 . Ram 4 | . 4 . . Kick 1 | . . 1 . Crush . | . . . . Escape Stasis . | . . . . Rewire . | . . . . Trap . | . . . . Miscellaneous . | . . . . Route ------- -11/Scrapyard -10/Materials -9/Materials -8/Materials History --------- Turn | Location | Event 2 | -11/Scrapyard | Met Revision 17 7 | -11/Scrapyard | Discovered new exit (range 15) 74 | -11/Scrapyard | Entered Materials 243 | -10/Materials | Discovered new exit (range 12) 261 | -10/Materials | Entered another Materials area 261 | -9/Materials | Evolved 2 slots: Utility x1, Weapon x1 865 | -9/Materials | Build established: Mutant 887 | -9/Materials | Repaired Grenade Launcher 961 | -9/Materials | Discovered new exit (range 15) 1096 | -9/Materials | Entered another Materials area 1096 | -8/Materials | Evolved 2 slots: Power x1, Utility x1 1165 | -8/Materials | Repaired Imp. EM Shotgun 1244 | -8/Materials | Build established: Skirmisher 1460 | -8/Materials | Lost 5 parts (2p3w) 1481 | -8/Materials | Core integrity fell below 50% 1517 | -8/Materials | Lost 4 parts (2n2u) 1548 | -8/Materials | Core integrity fell below 20% 1594 | -8/Materials | Destroyed by G-50 Soldier with Heavy Laser Last Messages --------------- 01484_ Arm. Wheel destroyed. 01484_ Critical hit (Burn: +37). 01486_ Sensor Array destroyed. 01488_ Critical hit (Burn: +37). 01493_ K-01 Serf cleans the Processing Tank. 01500_ Triggered Shock Trap. 01500_ The floor emits a surge of raw power. 01500_ System corrupted (+2). 01503_ Acquired Imp. Sensor Array. 01505_ K-01 Serf cleans the Processing Tank. 01509_ Acquired Imp. Sensor Array. 01512_ K-01 Serf cleans the Processing Tank. 01512_ Processing Tank disabled. 01532_ Discarded Hacking Suite. 01539_ Particle Gun destroyed. 01541_ Acquired Minigun. 01557_ Critical hit (Burn: +37). 01570_ Acquired Minigun. 01594_ Critical hit (Burn: +37). Map ----- +----------------------------------------------------+ | | | | | | | | | | | | | | | ?????????????????????###############?????????????? | | ?????????????????????# #?????????????? | | ?????????????????????# #?????????????? | | ?????????????######??# """ """ """ #?????????????? | | ????????????##!!!!##?# """ """ """ #?????????????? | | ????????????#! !#?# """ """ """ #?????????????? | | ????????????# #?# #?????????????? | | ????????????# #########+########????????????? | | ????????????# #????????????? | | ????######### ##### #????????????? | | ?? !! #??????????????????? | | ??????####### ! ##### ##??????????????????? | | ????????????# !! #???# #???????????????????? | | ????????????# #???#g#???????????????????? | | ????????????# #####g##??????????????????? | | ????????????# """" #/ #???? ########???? | | ????????????# """"" # #???? #???????#### | | ????????????# """"" # [ #????+####??????# | | ????????????# + @ [[ #???? #??????# | | ????????????# # [ #????""" #??????#""" | | ????????????# """"" #! #????""" #??????#""" | | #####+##### """"" ########????""" #??????#""" | | """"" #??????????? #??????# | | #######????? #????###### | | # #?????#####????# | | #####+######+####### # #??????????????# """ | | ??????????# ????# # #??????????????# """ | | ??????????# ??# # #??????????????#] """ | | ??????????# """ #?# # #??????????????# | | ??????????# """ #?# # " #?????##???????#= | | ??????????# """ #?# / """ #????? ###??#??# " | | ??????????# #?# # # ???? #?????#= " | | ??????????########?# # " # ?"" #?????# | | ???????????????????# # # """ #?????###### | | ???????????????????# # # """ #?????#?# | | ???????????????????# # = # #?#?????# | | ???????????????????# ####### """ #?#?????# | | ???????????????????# #???#?# """ #???????# | | ??????????????????## ##????? """ #???????# | | ??????????????????# ###????? #??#????# | | ??????????????????# # #?????##+############ | | ??????????????##### T ""####### | | ?????? = | +----------------------------------------------------+ Best States ------------- Heat Dissipation 31 Energy Generation 21 Energy Capacity 415 Matter Stores 300 Matter Capacity 300 Sight Range 18 Robot Scan Range 15 Terrain Scan Range 14 Terrain Scan Density 10 Evasion (%) 55 Offensive Hacking 10 Item Schematics ----------------- None Robot Schematics ------------------ None Fabricated ------------ Nothing Repaired ---------- Grenade Launcher | 25% | -9/Materials Imp. EM Shotgun | 18% | -8/Materials Alien Tech Used ----------------- None Achievements -------------- Remodeling Challenges ------------ None Game ------ Seed WeldingDeliveryMultitool Manual? 0 Play Time 00:33:04 Cumulative 6.2 hours Start 2025.09.14 @ 18:03:25 End 2025.09.14 @ 18:34:50 Sessions 1 Manual Loads 0 Difficulty Rogue Special Mode None Game No. 6 Rogue 6 Adventurer 0 Explorer 0 Win Type - Total 0 Types 0/0/0/0/0/0/0/0/0/0 Lore% 2 Gallery% 11 Achievement% 10 Wizard Run 0 Options --------- Layout 1 ASCII 0 Keyboard 1 Movement Numpad Keybinds 0 Fullscreen 1 Font 24/Smallcaps Map View 50x35 Zoom Use 0% Tactical HUD 1 Map Filters NONE Filters NONE Steam 1 RUN: 6c7954ca-5544-473f-b5bf-077d8a38f898